fUST/lending_fUST_20240519
["ID","MTS","AMOUNT","RATE_DAILY","PERIOD"]
[327474818,1716102644765,-3702.55,0.00017808,2]
[327474819,1716102644774,-2438.82,0.00017808,2]
[327474820,1716102644784,-554.66,0.00017808,2]
[327474821,1716102644795,-1101.98,0.00017808,2]
[327474822,1716102644804,-3168.62,0.00017808,2]
[327474823,1716102644814,-500.0,0.00017808,2]
[327474824,1716102644823,-500.0,0.00017808,2]
[327474825,1716102644832,-500.0,0.00017808,2]
[327474826,1716102644841,-500.0,0.00017808,2]
[327474827,1716102644851,-2157.79,0.00017808,2]
[327474828,1716102644926,-500.0,0.00017808,2]
[327474829,1716102644935,-3563.41,0.00017808,2]
[327474830,1716102644945,-500.0,0.00017808,2]
[327474831,1716102644954,-764.01,0.00017808,2]
[327474832,1716102644963,-1480.08,0.00017808,2]
[327474833,1716102644972,-500.0,0.00017808,2]
[327474834,1716102644981,-500.0,0.00017808,2]
[327474835,1716102644992,-500.0,0.00017808,2]
[327474836,1716102645001,-1745.43,0.00017808,2]
[327474837,1716102645011,-500.0,0.00017808,2]
[327474838,1716102645020,-500.0,0.00017808,2]
[327474839,1716102645029,-500.0,0.00017808,2]
[327474840,1716102645038,-500.0,0.00017808,2]
[327474841,1716102645049,-500.0,0.00017808,2]
[327474842,1716102645061,-500.0,0.00017808,2]
[327474843,1716102645073,-858.57,0.00017808,2]
[327474844,1716102645095,-500.0,0.00017808,2]
[327474845,1716102645115,-500.0,0.00017808,2]
[327474846,1716102645125,-500.0,0.00017808,2]
[327474847,1716102645134,-6989.26,0.00017808,2]
[327474848,1716102645143,-8834.93,0.00017808,2]
[327474849,1716102645153,-576.38,0.00017808,2]
[327474850,1716102645163,-160.48093944,0.00017808,2]
[327474851,1716102645172,-633.0353281,0.00017808,2]
[327474852,1716102645181,-500.0,0.00017808,2]
[327474853,1716102645191,-500.0,0.00017808,2]
[327474854,1716102645200,-671.92,0.00017808,2]
[327474855,1716102645209,-56515.44,0.00017808,2]
[327474856,1716102645219,-2149.59,0.00017808,2]
[327474857,1716102645228,-2297.87,0.00017808,2]
[327474858,1716102645237,-500.0,0.00017808,2]
[327474859,1716102645246,-6849.14,0.00017808,2]
[327474860,1716102645257,-500.0,0.00017808,2]
[327474861,1716102645266,-764.24,0.00017808,2]
[327474862,1716102645280,-500.0,0.00017808,2]
[327474863,1716102645290,-500.0,0.00017808,2]
[327474864,1716102645300,-2581.11,0.00017808,2]
[327474865,1716102645310,-1709.01,0.00017808,2]
[327474866,1716102645319,-12256.81,0.00017808,2]
[327474867,1716102645329,-1825.1,0.00017808,2]
[327474868,1716102645339,-500.0,0.00017808,2]
[327474869,1716102645349,-500.0,0.00017808,2]
[327474870,1716102645358,-961.63,0.00017808,2]
[327474871,1716102645369,-2096.47,0.00017808,2]
[327474872,1716102645378,-500.0,0.00017808,2]
[327474873,1716102645388,-680.17,0.00017808,2]
[327474874,1716102645398,-1569.61,0.00017808,2]
[327474875,1716102645407,-500.0,0.00017808,2]
[327474876,1716102645416,-662.13,0.00017808,2]
[327474877,1716102645426,-737.49,0.00017808,2]
[327474878,1716102645435,-500.0,0.00017808,2]
[327474879,1716102645445,-2763.69,0.00017808,2]
[327474880,1716102645455,-506.48,0.00017808,2]
[327474881,1716102645464,-3093.88,0.00017808,2]
[327474882,1716102645473,-500.0,0.00017808,2]
[327474883,1716102645483,-500.0,0.00017808,2]
[327474884,1716102645492,-500.0,0.00017808,2]
[327474885,1716102645502,-1124.04,0.00017808,2]
[327474886,1716102645512,-1091.23,0.00017808,2]
[327474887,1716102645521,-3551.36,0.00017808,2]
[327474888,1716102645531,-597.8,0.00017808,2]
[327474889,1716102645541,-3000.0,0.00017808,2]
[327474890,1716102645552,-3000.0,0.00017808,2]
[327474891,1716102645562,-3000.0,0.00017808,2]
[327474892,1716102645571,-2494.22582415,0.00017808,2]
[327474893,1716102645581,-500.0,0.00017808,2]
[327474894,1716102645591,-3593.31,0.00017808,2]
[327474895,1716102645602,-500.0,0.00017808,2]
[327474896,1716102645611,-500.0,0.00017808,2]
[327474897,1716102645621,-1310.88,0.00017808,2]
[327474898,1716102645630,-2032.29,0.00017808,2]
[327474899,1716102645640,-1413.18,0.00017808,2]
[327474900,1716102645649,-500.0,0.00017808,2]
[327474901,1716102645659,-4857.93,0.00017808,2]
[327474902,1716102645668,-2781.03,0.00017808,2]
[327474903,1716102645677,-2196.71,0.00017808,2]
[327474904,1716102645687,-2517.92,0.00017808,2]
[327474905,1716102645696,-500.0,0.00017808,2]
[327474906,1716102645705,-607.66,0.00017808,2]
[327474907,1716102645715,-880.7,0.00017808,2]
[327474908,1716102645724,-500.0,0.00017808,2]
[327474909,1716102645733,-2276.02,0.00017808,2]
[327474910,1716102645742,-619.23,0.00017808,2]
[327474911,1716102645752,-872.15,0.00017808,2]
[327474912,1716102645761,-500.0,0.00017808,2]
[327474913,1716102645771,-500.0,0.00017808,2]
[327474914,1716102645779,-874.13,0.00017808,2]
[327474915,1716102645789,-1456.16,0.00017808,2]
[327474916,1716102645799,-957.3,0.00017808,2]
[327474917,1716102645808,-7814.61,0.00017808,2]
[327474918,1716102645817,-1181.2,0.00017808,2]
[327474919,1716102645826,-500.0,0.00017808,2]
[327474920,1716102645836,-500.0,0.00017808,2]
[327474921,1716102645844,-4756.07,0.00017808,2]
[327474922,1716102645854,-506.0,0.00017808,2]
[327474923,1716102645863,-14144.53,0.00017808,2]
[327474924,1716102645872,-303.12545614,0.00017808,2]
[327474925,1716102645881,-7740.46,0.00017808,2]
[327474926,1716102645891,-730.76,0.00017808,2]
[327474927,1716102645900,-972.1,0.00017808,2]
[327474928,1716102645909,-9867.26169867,0.00017898,2]
[327474930,1716102647077,-2003.41121495,0.00015952,2]
[327474931,1716102647089,-724.77014005,0.00015952,2]
[327474932,1716102647098,-1127.01378368,0.00015952,2]
[327474948,1716102647691,-1601.16757132,0.00015952,2]
[327474949,1716102647701,-2728.181355,0.00015952,2]
[327474950,1716102647710,-2728.181355,0.00015952,2]
[327474951,1716102647719,-2728.181355,0.00015952,2]
[327474952,1716102647729,-2728.181355,0.00015952,2]
[327474953,1716102647738,-2728.181355,0.00015952,2]
[327474954,1716102647747,-2728.181355,0.00015952,2]
[327474955,1716102647757,-2728.181355,0.00015952,2]
[327474956,1716102647766,-2728.181355,0.00015952,2]
[327474957,1716102647775,-2728.181355,0.00015978,2]
[327474958,1716102647784,-2728.181355,0.00015978,2]
[327474959,1716102647795,-2728.181355,0.00016,2]
[327474960,1716102647806,-2728.181355,0.00016,2]
[327474961,1716102647815,-2728.181355,0.00016,2]
[327474967,1716102647942,-2728.181355,0.00016,2]
[327474968,1716102648005,-2728.181355,0.00016,2]
[327474969,1716102648015,-1776.06500568,0.00016,2]
[327474970,1716102648035,-952.11634932,0.00016,2]
[327474971,1716102648045,-53.16756587,0.00016,2]
[327474975,1716102648262,-1060.40404401,0.00016,2]
[327474976,1716102648275,-545.30086343,0.00016,2]
[327474984,1716103064599,-525.70649232,0.00015899,2]
[327474985,1716103064620,-1707.17350768,0.000159,2]
[327474987,1716103154907,1008.37677928,0.00012327,2]
[327474990,1716103207929,3372.55809041,0.00012327,2]
[327474991,1716103213841,2089.88571219,0.00012327,2]
[327474992,1716103223933,3372.55809041,0.00012327,2]
[327474993,1716103245934,1636.02529345,0.00012327,2]
[327474995,1716103251880,2089.88571219,0.00012327,2]
[327474996,1716103267854,2087.36350557,0.00012327,2]
[327475082,1716103838162,-13171.27741131,0.00015317,2]
[327475084,1716103838172,-21839.4236819,0.00015417,2]
[327475086,1716103838182,-1270.0,0.00016337,2]
[327475088,1716103838192,-155.98092403,0.00016338,2]
[327475090,1716103838202,-253.99858447,0.00016338,2]
[327475092,1716103838214,-11.17571188,0.00016436,2]
[327475205,1716103840530,-384.15198111,0.00016436,2]
[327475206,1716103840540,-518.90254778,0.00016436,2]
[327475207,1716103840854,-172.61112556,0.00016436,2]
[327475208,1716103840863,-803.39175304,0.00016436,2]
[327475209,1716103840874,-348.3572859,0.00016436,2]
[327475592,1716103845496,-1270.0,0.00016,2]
[327475593,1716103845505,-1537.10123778,0.00016436,2]
[327475594,1716103845515,-531.30935505,0.00016436,2]
[327475595,1716103845524,-273.0715558,0.00016437,2]
[327475596,1716103845533,-10528.2164158,0.00016437,2]
[327475597,1716103845543,-289.78505991,0.00016438,3]
[327475598,1716103845552,-500.0,0.00016438,2]
[327475599,1716103845562,-504.73943998,0.00016438,2]
[327475600,1716103845571,-504.18578402,0.00016438,2]
[327475601,1716103845580,-500.0,0.00016438,2]
[327475602,1716103845590,-500.0,0.00016438,2]
[327475603,1716103845599,-1016.84,0.00016438,2]
[327475604,1716103845610,-500.0,0.00016438,2]
[327475605,1716103845619,-1484.68,0.00016438,2]
[327475606,1716103845628,-500.0,0.00016438,2]
[327475607,1716103845638,-646.71,0.00016438,2]
[327475608,1716103845647,-500.0,0.00016438,2]
[327475609,1716103845657,-500.0,0.00016438,2]
[327475610,1716103845666,-500.0,0.00016438,2]
[327475611,1716103845675,-500.0,0.00016438,2]
[327475612,1716103845684,-560.56748979,0.00016438,2]
[327475614,1716103845694,-500.0,0.00016438,2]
[327475616,1716103845703,-500.0,0.00016438,2]
[327475617,1716103845712,-500.0,0.00016438,2]
[327475619,1716103845722,-500.0,0.00016438,2]
[327475621,1716103845730,-573.0,0.00016438,2]
[327475623,1716103845739,-500.0,0.00016438,2]
[327475625,1716103845749,-500.0,0.00016438,2]
[327475628,1716103845758,-500.0,0.00016438,2]
[327475630,1716103845767,-500.0,0.00016438,2]
[327475632,1716103845777,-841.18,0.00016438,2]
[327475633,1716103845786,-1269.35,0.00016438,2]
[327475635,1716103845795,-1065.39,0.00016438,2]
[327475636,1716103845805,-500.0,0.00016438,2]
[327475637,1716103845814,-749.12,0.00016438,2]
[327475638,1716103845823,-500.0,0.00016438,2]
[327475639,1716103845833,-512.02879598,0.00016438,2]
[327475640,1716103845842,-500.0,0.00016438,2]
[327475641,1716103845853,-500.0,0.00016438,2]
[327475642,1716103845862,-500.0,0.00016438,2]
[327475643,1716103845872,-500.0,0.00016438,2]
[327475644,1716103845881,-500.18,0.00016438,2]
[327475645,1716103845891,-500.0,0.00016438,2]
[327475646,1716103845900,-500.0,0.00016438,2]
[327475647,1716103845909,-500.0,0.00016438,2]
[327475648,1716103845920,-2247.83,0.00016438,2]
[327475649,1716103845929,-500.0,0.00016438,2]
[327475650,1716103845938,-500.0,0.00016438,2]
[327475651,1716103845948,-500.0,0.00016438,2]
[327475652,1716103845957,-1011.76,0.00016438,2]
[327475653,1716103845966,-1091.31,0.00016438,2]
[327475654,1716103845976,-500.0,0.00016438,2]
[327475655,1716103845986,-500.0,0.00016438,2]
[327475656,1716103845996,-743.63,0.00016438,2]
[327475657,1716103846005,-594.06,0.00016438,2]
[327475658,1716103846015,-500.0,0.00016438,2]
[327475659,1716103846024,-500.0,0.00016438,2]
[327475660,1716103846033,-883.06,0.00016438,2]
[327475661,1716103846042,-500.0,0.00016438,2]
[327475662,1716103846051,-1558.63,0.00016438,2]
[327475663,1716103846061,-500.0,0.00016438,2]
[327475664,1716103846070,-500.0,0.00016438,2]
[327475665,1716103846079,-500.0,0.00016438,2]
[327475666,1716103846088,-1609.31,0.00016438,2]
[327475667,1716103846097,-500.0,0.00016438,2]
[327475668,1716103846107,-500.0,0.00016438,2]
[327475669,1716103846116,-2797.75,0.00016438,2]
[327475670,1716103846125,-611.8,0.00016438,2]
[327475671,1716103846134,-1137.38,0.00016438,2]
[327475672,1716103846144,-500.0,0.00016438,2]
[327475673,1716103846157,-826.48,0.00016438,2]
[327475674,1716103846166,-1849.95,0.00016438,2]
[327475675,1716103846176,-2376.47,0.00016438,2]
[327475676,1716103846185,-500.0,0.00016438,2]
[327475677,1716103846195,-500.0,0.00016438,2]
[327475678,1716103846204,-500.0,0.00016438,2]
[327475679,1716103846214,-500.0,0.00016438,2]
[327475680,1716103846223,-2693.39,0.00016438,2]
[327475681,1716103846233,-1639.18,0.00016438,2]
[327475682,1716103846242,-500.0,0.00016438,2]
[327475683,1716103846251,-1132.62,0.00016438,2]
[327475684,1716103846260,-500.0,0.00016438,2]
[327475685,1716103846269,-500.0,0.00016438,2]
[327475686,1716103846279,-500.0,0.00016438,2]
[327475688,1716103846288,-623.67930447,0.00016438,2]
[327475690,1716103846298,-1329.91,0.00016438,2]
[327475691,1716103846307,-500.0,0.00016438,2]
[327475693,1716103846316,-598.6,0.00016438,2]
[327475694,1716103846328,-500.0,0.00016438,2]
[327475695,1716103846338,-500.0,0.00016438,2]
[327475696,1716103846347,-500.0,0.00016438,2]
[327475697,1716103846357,-500.0,0.00016438,2]
[327475698,1716103846366,-500.0,0.00016438,2]
[327475699,1716103846375,-500.0,0.00016438,2]
[327475700,1716103846384,-500.0,0.00016438,2]
[327475701,1716103846394,-500.0,0.00016438,2]
[327475702,1716103846403,-500.0,0.00016438,2]
[327475703,1716103846412,-500.0,0.00016438,2]
[327475704,1716103846421,-500.0,0.00016438,2]
[327475705,1716103846431,-500.0,0.00016438,2]
[327475706,1716103846440,-500.0,0.00016438,2]
[327475707,1716103846544,-500.0,0.00016438,2]
[327475708,1716103846555,-573.18,0.00016438,2]
[327475709,1716103846565,-500.0,0.00016438,2]
[327475710,1716103846575,-42479.62,0.00016438,2]
[327475711,1716103846584,-1956.67,0.00016438,2]
[327475712,1716103846594,-500.0,0.00016438,2]
[327475713,1716103846604,-500.0,0.00016438,2]
[327475714,1716103846614,-500.0,0.00016438,2]
[327475715,1716103846622,-716.18,0.00016438,2]
[327475716,1716103846631,-5178.93,0.00016438,2]
[327475717,1716103846640,-500.0,0.00016438,2]
[327475718,1716103846650,-9192.61,0.00016438,2]
[327475719,1716103846660,-1368.82,0.00016438,2]
[327475720,1716103846669,-500.0,0.00016438,2]
[327475721,1716103846679,-500.0,0.00016438,4]
[327475722,1716103846688,-1593.19,0.00016438,2]
[327475723,1716103846697,-500.0,0.00016438,2]
[327475724,1716103846707,-2341.24,0.00016438,2]
[327475725,1716103846717,-500.0,0.00016438,2]
[327475726,1716103846728,-500.0,0.00016438,2]
[327475727,1716103846737,-1198.04,0.00016438,2]
[327475728,1716103846747,-500.0,0.00016438,2]
[327475729,1716103846757,-530.96,0.00016438,2]
[327475730,1716103846766,-500.0,0.00016438,2]
[327475731,1716103846775,-24634.29,0.00016438,2]
[327475732,1716103846784,-500.0,0.00016438,2]
[327475733,1716103846793,-500.0,0.00016438,2]
[327475734,1716103846802,-1281.76,0.00016438,2]
[327475735,1716103846812,-500.0,0.00016438,2]
[327475736,1716103846821,-500.0,0.00016438,2]
[327475737,1716103846830,-500.0,0.00016438,2]
[327475738,1716103846839,-721.22,0.00016438,2]
[327475739,1716103846849,-2072.77,0.00016438,2]
[327475740,1716103846858,-500.0,0.00016438,2]
[327475741,1716103846868,-500.0,0.00016438,2]
[327475742,1716103846877,-1003.99,0.00016438,2]
[327475743,1716103846886,-504.60431469,0.00016438,2]
[327475744,1716103846896,-5272.45,0.00016438,2]
[327475745,1716103846905,-500.0,0.00016438,2]
[327475746,1716103846914,-2106.61,0.00016438,2]
[327475747,1716103846923,-500.0,0.00016438,2]
[327475748,1716103846932,-818.43,0.00016438,2]
[327475749,1716103846941,-500.0,0.00016438,2]
[327475750,1716103846951,-2689.25,0.00016438,2]
[327475751,1716103846960,-500.0,0.00016438,2]
[327475752,1716103846969,-843.03,0.00016438,2]
[327475753,1716103846978,-500.0,0.00016438,2]
[327475754,1716103846987,-972.81,0.00016438,2]
[327475755,1716103846996,-1909.27,0.00016438,2]
[327475756,1716103847005,-500.0,0.00016438,2]
[327475757,1716103847014,-1545.05,0.00016438,2]
[327475758,1716103847024,-2694.99,0.00016438,2]
[327475759,1716103847033,-654.12,0.00016438,2]
[327475760,1716103847042,-3670.68,0.00016438,2]
[327475761,1716103847051,-2455.19,0.00016438,2]
[327475762,1716103847060,-1059.89,0.00016438,2]
[327475763,1716103847070,-5999.56,0.00016438,2]
[327475764,1716103847079,-1647.54,0.00016438,2]
[327475765,1716103847087,-500.0,0.00016438,2]
[327475766,1716103847097,-568.91,0.00016438,2]
[327475767,1716103847107,-500.0,0.00016438,2]
[327475768,1716103847116,-2332.87,0.00016438,2]
[327475769,1716103847125,-500.0,0.00016438,2]
[327475770,1716103847134,-660.52,0.00016438,2]
[327475771,1716103847143,-500.0,0.00016438,2]
[327475772,1716103847155,-1707.02,0.00016438,2]
[327475773,1716103847165,-5805.35,0.00016438,2]
[327475774,1716103847175,-655.6,0.00016438,2]
[327475775,1716103847185,-504.60628222,0.00016438,2]
[327475776,1716103847195,-1705.66,0.00016438,2]
[327475777,1716103847205,-664.76,0.00016438,2]
[327475778,1716103847214,-885.9,0.00016438,2]
[327475779,1716103847224,-503.94,0.00016438,2]
[327475780,1716103847234,-717.98,0.00016438,2]
[327475781,1716103847243,-6707.21,0.00016438,2]
[327475782,1716103847252,-500.0,0.00016438,2]
[327475783,1716103847262,-500.0,0.00016438,2]
[327475784,1716103847271,-500.0,0.00016438,2]
[327475785,1716103847280,-10697.46,0.00016438,2]
[327475786,1716103847289,-1112.96,0.00016438,2]
[327475787,1716103847298,-500.0,0.00016438,2]
[327475788,1716103847307,-3567.06,0.00016438,2]
[327475789,1716103847316,-729.07,0.00016438,2]
[327475790,1716103847326,-206.64339249,0.00016438,2]
[327475791,1716103847335,-1723.41,0.00016438,2]
[327475792,1716103847345,-274.24725433,0.000165,2]
[327475793,1716103847356,-1016.84,0.00016712,2]
[327475794,1716103847365,-1484.68,0.00016712,2]
[327475795,1716103847375,-500.0,0.00016712,2]
[327475796,1716103847384,-646.71,0.00016712,2]
[327475797,1716103847394,-500.0,0.00016712,2]
[327475798,1716103847404,-500.0,0.00016712,2]
[327475799,1716103847413,-500.0,0.00016712,2]
[327475800,1716103847423,-538.74165505,0.00016712,2]
[327475801,1716103847432,-500.0,0.00016712,2]
[327475802,1716103847441,-500.0,0.00016712,2]
[327475803,1716103847451,-500.0,0.00016712,2]
[327475804,1716103847460,-500.0,0.00016712,2]
[327475805,1716103847470,-573.0,0.00016712,2]
[327475806,1716103847479,-500.0,0.00016712,2]
[327475807,1716103847488,-500.0,0.00016712,2]
[327475808,1716103847498,-500.0,0.00016712,2]
[327475809,1716103847507,-500.0,0.00016712,2]
[327475810,1716103847516,-841.18,0.00016712,2]
[327475811,1716103847526,-1269.35,0.00016712,2]
[327475812,1716103847535,-1065.39,0.00016712,2]
[327475813,1716103847545,-500.0,0.00016712,2]
[327475814,1716103847555,-749.12,0.00016712,2]
[327475815,1716103847564,-500.0,0.00016712,2]
[327475816,1716103847573,-500.0,0.00016712,2]
[327475817,1716103847583,-236.014741,0.00016712,2]
[327475818,1716103847592,-236.014741,0.00016712,2]
[327475819,1716103847602,-500.0,0.00016712,2]
[327475820,1716103847612,-500.0,0.00016712,2]
[327475821,1716103847621,-500.18,0.00016712,2]
[327475822,1716103847631,-500.0,0.00016712,2]
[327475823,1716103847640,-500.0,0.00016712,2]
[327475824,1716103847650,-500.0,0.00016712,2]
[327475825,1716103847659,-2247.83,0.00016712,2]
[327475826,1716103847668,-500.0,0.00016712,2]
[327475827,1716103847677,-500.0,0.00016712,2]
[327475828,1716103847687,-500.0,0.00016712,2]
[327475829,1716103847696,-1011.76,0.00016712,2]
[327475830,1716103847706,-1091.31,0.00016712,2]
[327475831,1716103847716,-500.0,0.00016712,2]
[327475832,1716103847726,-500.0,0.00016712,2]
[327475833,1716103847735,-743.63,0.00016712,2]
[327475834,1716103847745,-594.06,0.00016712,2]
[327475835,1716103847754,-500.0,0.00016712,2]
[327475836,1716103847764,-500.0,0.00016712,2]
[327475837,1716103847773,-883.06,0.00016712,2]
[327475838,1716103847783,-155.73721726,0.00016712,2]
[327475839,1716103847793,-1558.63,0.00016712,2]
[327475840,1716103847803,-500.0,0.00016712,2]
[327475841,1716103847812,-500.0,0.00016712,2]
[327475842,1716103847822,-500.0,0.00016712,2]
[327475843,1716103847832,-1609.31,0.00016712,2]
[327475844,1716103847842,-500.0,0.00016712,2]
[327475845,1716103847851,-500.0,0.00016712,2]
[327475846,1716103847863,-2797.75,0.00016712,2]
[327475847,1716103847872,-611.8,0.00016712,2]
[327475848,1716103847882,-1137.38,0.00016712,2]
[327475849,1716103847891,-500.0,0.00016712,2]
[327475850,1716103847900,-826.48,0.00016712,2]
[327475851,1716103847910,-1849.95,0.00016712,2]
[327475852,1716103847920,-2376.47,0.00016712,2]
[327475853,1716103847930,-500.0,0.00016712,2]
[327475854,1716103847940,-500.0,0.00016712,2]
[327475855,1716103847949,-500.0,0.00016712,2]
[327475856,1716103847959,-500.0,0.00016712,2]
[327475857,1716103847969,-2693.39,0.00016712,2]
[327475858,1716103847978,-1639.18,0.00016712,2]
[327475859,1716103847988,-500.0,0.00016712,2]
[327475860,1716103847997,-1132.62,0.00016712,2]
[327475861,1716103848007,-500.0,0.00016712,2]
[327475862,1716103848017,-500.0,0.00016712,2]
[327475863,1716103848027,-500.0,0.00016712,2]
[327475864,1716103848036,-1329.91,0.00016712,2]
[327475865,1716103848046,-500.0,0.00016712,2]
[327475866,1716103848055,-598.6,0.00016712,2]
[327475867,1716103848065,-500.0,0.00016712,2]
[327475868,1716103848074,-500.0,0.00016712,2]
[327475869,1716103848084,-500.0,0.00016712,2]
[327475870,1716103848094,-500.0,0.00016712,2]
[327475871,1716103848103,-500.0,0.00016712,2]
[327475872,1716103848113,-500.0,0.00016712,2]
[327475873,1716103848122,-500.0,0.00016712,2]
[327475874,1716103848131,-500.0,0.00016712,2]
[327475875,1716103848141,-500.0,0.00016712,2]
[327475876,1716103848152,-500.0,0.00016712,2]
[327475877,1716103848164,-500.0,0.00016712,2]
[327475878,1716103848174,-500.0,0.00016712,2]
[327475879,1716103848183,-500.0,0.00016712,2]
[327475880,1716103848192,-500.0,0.00016712,2]
[327475881,1716103848202,-573.18,0.00016712,2]
[327475882,1716103848211,-500.0,0.00016712,2]
[327475883,1716103848221,-42479.62,0.00016712,2]
[327475884,1716103848314,-1956.67,0.00016712,2]
[327475885,1716103848325,-500.0,0.00016712,2]
[327475886,1716103848335,-500.0,0.00016712,2]
[327475887,1716103848344,-500.0,0.00016712,2]
[327475888,1716103848354,-716.18,0.00016712,2]
[327475889,1716103848364,-5178.93,0.00016712,2]
[327475890,1716103848373,-500.0,0.00016712,2]
[327475891,1716103848383,-9192.61,0.00016712,2]
[327475892,1716103848392,-1368.82,0.00016712,2]
[327475893,1716103848401,-500.0,0.00016712,2]
[327475894,1716103848411,-1593.19,0.00016712,2]
[327475895,1716103848420,-500.0,0.00016712,4]
[327475896,1716103848429,-500.0,0.00016712,2]
[327475897,1716103848438,-2341.24,0.00016712,2]
[327475898,1716103848448,-500.0,0.00016712,2]
[327475899,1716103848457,-500.0,0.00016712,2]
[327475900,1716103848467,-1198.04,0.00016712,2]
[327475901,1716103848476,-500.0,0.00016712,2]
[327475902,1716103848487,-530.96,0.00016712,2]
[327475903,1716103848496,-500.0,0.00016712,2]
[327475904,1716103848505,-24634.29,0.00016712,2]
[327475905,1716103848515,-500.0,0.00016712,2]
[327475906,1716103848524,-500.0,0.00016712,2]
[327475907,1716103848533,-1281.76,0.00016712,2]
[327475908,1716103848543,-500.0,0.00016712,2]
[327475909,1716103848553,-721.22,0.00016712,2]
[327475910,1716103848563,-2072.77,0.00016712,2]
[327475911,1716103848572,-500.0,0.00016712,2]
[327475912,1716103848582,-500.0,0.00016712,2]
[327475913,1716103848591,-1003.99,0.00016712,2]
[327475914,1716103848601,-189.874512,0.00016712,2]
[327475915,1716103848612,-5272.45,0.00016712,2]
[327475916,1716103848621,-189.874512,0.00016712,2]
[327475917,1716103848630,-500.0,0.00016712,2]
[327475918,1716103848639,-2106.61,0.00016712,2]
[327475919,1716103848650,-500.0,0.00016712,2]
[327475920,1716103848660,-818.43,0.00016712,2]
[327475921,1716103848670,-500.0,0.00016712,2]
[327475922,1716103848679,-2689.25,0.00016712,2]
[327475923,1716103848689,-500.0,0.00016712,2]
[327475924,1716103848699,-843.03,0.00016712,2]
[327475925,1716103848708,-500.0,0.00016712,2]
[327475926,1716103848718,-972.81,0.00016712,2]
[327475927,1716103848728,-1909.27,0.00016712,2]
[327475928,1716103848738,-500.0,0.00016712,2]
[327475929,1716103848748,-1545.05,0.00016712,2]
[327475930,1716103848758,-2694.99,0.00016712,2]
[327475931,1716103848768,-654.12,0.00016712,2]
[327475932,1716103848777,-3670.68,0.00016712,2]
[327475933,1716103848787,-2455.19,0.00016712,2]
[327475934,1716103848797,-1059.89,0.00016712,2]
[327475935,1716103848807,-5999.56,0.00016712,2]
[327475936,1716103848816,-1647.54,0.00016712,2]
[327475937,1716103848826,-500.0,0.00016712,2]
[327475938,1716103848836,-568.91,0.00016712,2]
[327475939,1716103848847,-500.0,0.00016712,2]
[327475940,1716103848858,-2332.87,0.00016712,2]
[327475941,1716103848868,-500.0,0.00016712,2]
[327475942,1716103848879,-660.52,0.00016712,2]
[327475943,1716103848889,-500.0,0.00016712,2]
[327475944,1716103848898,-1707.02,0.00016712,2]
[327475945,1716103848908,-5805.35,0.00016712,2]
[327475946,1716103848917,-655.6,0.00016712,2]
[327475947,1716103848926,-1705.66,0.00016712,2]
[327475948,1716103848935,-664.76,0.00016712,2]
[327475949,1716103848945,-885.9,0.00016712,2]
[327475950,1716103848955,-503.94,0.00016712,2]